Cogmind - Beta 16 --- EXPLORER MODE // 2025.12.24 @ 11:27:18 Player: K.K.Y. Result: Destroyed by Y-64 Sentinel with KE Penetrator Performance ------------- Evolutions (4) 2000 Regions Visited (11) 2200 Robots Destroyed (147) 735 Value Destroyed (5629) 5629 Prototype IDs (40) 800 Alien Tech Used (0) 0 Bonus (2844) 2844 TOTAL SCORE: 14208 Bonus ------- Follower Combat Kills 289 Delivered SUBCON Basin 2000 Met Imprinter 300 Was Imprinted 300 Friendly Fire -45 Cogmind --------- Core Integrity 0/850 Matter 428/450 Energy 458/510 System Corruption 0% Temperature Cool (10) Movement Flying (34) Location -5/Proximity Caves Parts ------- > --- POWER (1) -------- Light Fission Core > --- PROPULSION (6) --- Field Propulsion Array Field Propulsion Array Field Propulsion Array > --- UTILITY (7) ------ Advanced Heat Sink Large Storage Unit Energy Well Compact Matter Pod Advanced Weight Redist. System Advanced Sensor Array Advanced Signal Interpreter > --- WEAPON (2) ------- Phase Cannon Gauss Rifle > --- INVENTORY (15) --- Humpback Machine Analyzer Triangulator Energy Filter Advanced ECM Suite Improved Reaction Control System Cloaking Device Hacking Suite Phasing AFG Coil Gun Magnetic Acceleration Cannon Improved Plasma Cutter Falx CR-A16's Pointy Stick Peak State ------------ > --- POWER ------------ Fission Core > --- PROPULSION ------- Field Propulsion Array Field Propulsion Array Field Propulsion Array > --- UTILITY ---------- Large Storage Unit Energy Well Compact Matter Pod Advanced Weight Redist. System Triangulator Advanced Targeting Computer Phasing AFG > --- WEAPON ----------- Coil Gun Heavy Flak Cannon > --- INVENTORY -------- Machine Analyzer Triangulator Advanced Signal Interpreter Energy Filter Improved Reaction Control System Cloaking Device Hacking Suite High-powered Tractor Beam Phase Cannon Coil Gun Magnetic Acceleration Cannon Heavy Flak Cannon Improved Plasma Cutter Falx CR-A16's Pointy Stick [Rating: 96] Favorites ----------- Power Light Nuclear Core Engine Light Ion Engine Power Core Light Nuclear Core Reactor Cold Fusion Reactor Propulsion Improved Treads Treads Improved Treads Leg Carbon-fiber Leg Hover Unit Backup Propulsion I Flight Unit Field Propulsion Array Utility Structural Scanner Device Structural Scanner Storage Large Storage Unit Processor Advanced Targeting Computer Hackware Hacking Suite Protection Powered Armor Weapon Improved Assault Rifle Energy Gun Backup Laser I Energy Cannon Heavy Particle Cannon Ballistic Gun Improved Assault Rifle Ballistic Cannon Heavy Flak Cannon Launcher Precision Rocket Launcher Special Weapon Improved Plasma Cutter Build | -11 -10 -10 -10 -9 -9 -6 -6 -6 -6 -6 -5 ------- Run | Yrd Mat Min Sub Rec Scr Fac Was Fac Low Zio Pro Slots Evolved 9 | . 1 . . . . 8 . . . . . Power . | . . . . . . . . . . . . Propulsion 4 | . . . . . . 4 . . . . . Utility 5 | . 1 . . . . 4 . . . . . Weapon . | . . . . . . . . . . . . Parts Attached 103 | 8 6 1 6 1 2 8 . 57 . 9 5 Power 12 | 1 . 1 1 . . . . 6 . 1 2 Engine 5 | 1 . . . . . . . 3 . . 1 Core 6 | . . 1 1 . . . . 2 . 1 1 Reactor 1 | . . . . . . . . 1 . . . Propulsion 17 | 2 2 . 2 1 . 3 . 7 . . . Treads 10 | 2 2 . 2 1 . 3 . . . . . Leg 1 | . . . . . . . . 1 . . . Wheel . | . . . . . . . . . . . . Hover . | . . . . . . . . . . . . Flight 6 | . . . . . . . . 6 . . . Utility 48 | 3 2 . 1 . 2 4 . 30 . 4 2 Device 29 | 2 1 . . . 2 1 . 19 . 2 2 Storage 8 | 1 1 . 1 . . . . 4 . 1 . Processor 5 | . . . . . . . . 4 . 1 . Hackware 3 | . . . . . . 3 . . . . . Protection 3 | . . . . . . . . 3 . . . Artifact . | . . . . . . . . . . . . Weapon 26 | 2 2 . 2 . . 1 . 14 . 4 1 Energy Gun 4 | 2 . . . . . . . 2 . . . Energy Cannon 6 | . . . 1 . . . . 4 . 1 . Ballistic Gun 11 | . 2 . 1 . . 1 . 4 . 2 1 Ballistic Cannon 3 | . . . . . . . . 3 . . . Launcher 1 | . . . . . . . . 1 . . . Special Weapon 1 | . . . . . . . . . . 1 . Impact Weapon . | . . . . . . . . . . . . Slashing Weapon . | . . . . . . . . . . . . Piercing Weapon . | . . . . . . . . . . . . Special Melee Weapon . | . . . . . . . . . . . . Unidentified Prototypes 9 | . 1 . . . . . . 7 . 1 . Parts Lost 27 | . 1 . . . . 3 5 18 . . . Power 4 | . . . . . . 1 . 3 . . . Propulsion 5 | . . . . . . . 2 3 . . . Utility 10 | . 1 . . . . 1 2 6 . . . Weapon 8 | . . . . . . 1 1 6 . . . Highest Loss Streak 8 | . 1 . . . . 1 5 8 . . . To Critical Strikes . | . . . . . . . . . . . . Average Backups 11 | 1 5 14 13 12 19 21 9 5 15 14 14 Power . | . . . . . . . . . 1 . . Propulsion . | . . 2 1 . . 1 1 . . . . Utility 6 | 1 1 5 5 7 13 13 5 3 8 8 9 Weapon 3 | . 3 6 5 2 2 4 2 1 5 4 4 Tool/Special . | . . . . . . . . . . . . Unused Backups 43 | . 1 . 6 3 . . 19 3 . 1 10 Power 1 | . . . . . . . . 1 . . . Propulsion 5 | . 1 . 1 2 . . 1 . . . . Utility 21 | . . . 1 . . . 11 2 . . 7 Weapon 14 | . . . 4 1 . . 5 . . 1 3 Tool/Special 2 | . . . . . . . 2 . . . . Average Slot Usage (%) 87 | . 92 100 100 100 100 75 28 67 81 80 81 Engine 1 | . 12 2 . . . . . 1 . . 4 Core 6 | . . 9 12 12 12 4 . . . 3 1 Treads 15 | . 24 25 25 25 25 26 9 . . . . Flight 5 | . . . . . . . . 14 18 18 18 Device 21 | . 28 25 25 25 25 15 7 14 18 17 18 Storage 9 | . 2 12 12 12 12 6 2 5 18 18 18 Processor 3 | . . . . . . . . 11 6 6 6 Energy Cannon 5 | . . . 7 12 12 5 . 1 . 1 6 Ballistic Gun 11 | . 23 25 16 12 12 6 3 5 6 6 6 Peak Build Rating 96 | 7 17 22 40 40 28 52 47 89 89 96 89 Average Rating 41 | 4 13 21 26 25 26 42 15 63 89 88 88 On Entrance 37 | . 7 17 22 40 24 28 47 4 89 89 87 Avg Prop Armor Cover (%) 1 | . . . . . . 14 14 1 . . . Naked Turns 140 | . . . . . . . 79 61 . . . Heaviest Build 242 | 8 31 35 98 96 97 98 90 55 53 242 53 Greatest Support 119 | 40 46 46 46 46 46 119 69 54 54 54 54 Greatest Overweight (x) 6 | . 1 . 2 2 2 2 6 6 1 4 . Average Overweight (x) . | . . . . . 1 . . . . . . Largest Inventory Capacity 35 | 10 15 15 25 25 25 25 25 15 15 35 15 Average Capacity 14 | 5 6 15 17 16 24 25 11 7 15 15 15 Most Carried 25 | 5 8 15 25 25 24 25 23 15 15 15 15 Average Carried 13 | 1 5 14 17 14 19 22 10 6 15 14 15 Final Capacity 25 | 5 15 15 25 15 25 25 15 15 15 15 15 Final Carried 25 | 2 8 15 25 15 24 23 5 15 15 15 15 Class Distribution -------------------- 76% | Hacker-Mutant 16% | Commander-Mutant 6% | Hacker-Sprinter Dominant Class ---------------- Hacker-Mutant | -10/Materials Hacker-Mutant | -10/Mines Hacker-Mutant | -10/Subcaves Hacker-Mutant | -9/Recycling Commander-Mutant | -9/Scraptown Hacker-Mutant | -6/Factory Hacker-Mutant | -6/Waste Hacker-Mutant | -6/Factory Hacker-Mutant | -6/Lower Caves Hacker-Mutant | -6/Zion Hacker-Mutant | -5/Proximity Caves Resources | -11 -10 -10 -10 -9 -9 -6 -6 -6 -6 -6 -5 ----------- Run | Yrd Mat Min Sub Rec Scr Fac Was Fac Low Zio Pro Matter Collected 4562 | 260 157 292 449 162 49 145 . 2610 . 210 228 Remotely 97 | . . . . . . . . . . 9 88 Salvage Created 5967 | 134 327 70 480 318 . 322 . 3749 . . 567 Parts 299 | 10 27 10 24 14 . 9 . 169 . . 36 Haulers Intercepted 7 | . 2 . . . . . . 5 . . . Recyclers Shooed 8 | 1 . . . . . . . 7 . . . Parts Field Recycled . | . . . . . . . . . . . . Retrieved Matter . | . . . . . . . . . . . . Parts Self-Destructed . | . . . . . . . . . . . . Prevented . | . . . . . . . . . . . . Parts Restored . | . . . . . . . . . . . . Kills | -11 -10 -10 -10 -9 -9 -6 -6 -6 -6 -6 -5 ------- Run | Yrd Mat Min Sub Rec Scr Fac Was Fac Low Zio Pro Combat Hostiles Destroyed 117 | . 8 3 12 6 . 6 . 65 . . 17 Guns 57 | . 8 3 6 1 . 4 . 31 . . 4 Cannons 57 | . . . 6 5 . 1 . 33 . . 12 Classes Destroyed 17 | 2 5 . 3 2 . . . 4 . . 1 Worker 2 | . . . . . . . . 2 . . . Tunneler 3 | 3 . . . . . . . . . . . Hauler 7 | . 2 . . . . . . 5 . . . Recycler 6 | 1 . . . . . . . 5 . . . Mechanic 1 | . . . . . . . . 1 . . . Turret 2 | . . . 2 . . . . . . . . Watcher 9 | . 3 . . . . . . 6 . . . Swarmer 37 | . 5 2 5 . . . . 14 . . 11 Saboteur 1 | . . . . . . . . . . . 1 Grunt 31 | . 2 1 . 1 . 4 . 20 . . 3 Brawler 1 | . . . . 1 . . . . . . . Sentry 15 | . . . 1 3 . . . 11 . . . Hunter 13 | . . . . 1 . 2 . 8 . . 2 Programmer 11 | . . . . . . . . 11 . . . Behemoth 1 | . . . . . . . . 1 . . . Artisan 2 | . . . 2 . . . . . . . . Subdweller 7 | . 1 . 6 . . . . . . . . Best Kill Streak 8 | 3 4 2 6 3 . 3 . 8 . . 5 Combat Bots Only 8 | . 4 2 4 3 . 3 . 8 . . 5 Max Kills in Single Turn 1 | 1 1 1 1 1 . 1 . 1 . . 1 Gunslinging . | . . . . . . . . . . . . Exploded . | . . . . . . . . . . . . Melee . | . . . . . . . . . . . . Uniques/NPCs Destroyed . | . . . . . . . . . . . . Combat | -11 -10 -10 -10 -9 -9 -6 -6 -6 -6 -6 -5 -------- Run | Yrd Mat Min Sub Rec Scr Fac Was Fac Low Zio Pro Hostile Shots Fired 952 | . 39 7 75 16 . 84 7 627 . . 97 Missed 394 | . 18 5 26 8 . 17 1 282 . . 37 Hits 558 | . 21 2 49 8 . 67 6 345 . . 60 Melee 7 | . . . . 1 . . 6 . . . . Projectile 551 | . 21 2 49 7 . 67 . 345 . . 60 AOE 1 | . 1 . . . . . . . . . . Critical Strikes 11 | . 1 . . . . 1 3 5 . . 1 Actively Blocked 1 | . . . . . . . . 1 . . . Damage Taken 5116 | . 226 8 348 78 . 681 173 3023 . . 579 Core 990 | . 4 . 115 9 . 61 114 556 . . 131 Absorbed by Shields . | . . . . . . . . . . . . Redirected to Shielding 102 | . . . . . . . . 102 . . . Ignored by Resistances 3149 | . 141 7 233 45 . 400 96 1882 . . 345 Regen/Repaired (Parts) 821 | . . . . . . . . 378 . 443 . Core Remaining (%) 74 | 100 . . . . 48 . . . . . . Volleys Fired 412 | 6 33 4 63 11 . 17 . 235 . 1 42 Largest 2 | 2 2 2 2 2 . 2 . 2 . 2 2 Hottest 138 | 90 46 46 98 98 . 100 . 138 . 74 118 Shots Fired 715 | 12 67 9 104 25 . 31 . 381 . 2 84 Gun 465 | 12 67 9 56 12 . 16 . 250 . 1 42 Cannon 250 | . . . 48 13 . 15 . 131 . 1 42 Launcher . | . . . . . . . . . . . . Special . | . . . . . . . . . . . . Kinetic 499 | . 67 9 56 12 . 16 . 295 . 2 42 Thermal 182 | 12 . . 48 13 . 15 . 52 . . 42 Explosive . | . . . . . . . . . . . . Electromagnetic 34 | . . . . . . . . 34 . . . Robot Hit Streak 38 | 5 23 2 21 14 . 18 . 38 . . 30 Robot Miss Streak 3 | 1 2 3 2 1 . 2 . 2 . . 3 Penetration Max 1 | . . . . . . . . 1 . . . Secondary Targets 6 | . 2 . . . . . . 4 . . . Max Gunslinging Chain 1 | . 1 . . . . . . 1 . . . Shots Hit Robots 553 | 7 57 4 56 18 . 27 . 323 . . 61 Core Hits 274 | 5 18 4 22 7 . 16 . 182 . . 20 Critical Kills 4 | . . . 1 1 . 1 . . . . 1 Critical Parts Destroyed 5 | . . . . . . . . 4 . . 1 Critical Strikes 23 | . 1 . 1 1 . 1 . 17 . . 2 Burn 3 | . . . . . . . . 3 . . . Meltdown 2 | . . . . . . 1 . . . . 1 Destroy 8 | . 1 . 1 1 . . . 4 . . 1 Blast 9 | . . . . . . . . 9 . . . Corrupt 1 | . . . . . . . . 1 . . . Melee Attacks . | . . . . . . . . . . . . Impact . | . . . . . . . . . . . . Slashing . | . . . . . . . . . . . . Piercing . | . . . . . . . . . . . . Sneak Attacks . | . . . . . . . . . . . . Combat Hostiles . | . . . . . . . . . . . . Follow-up Attacks . | . . . . . . . . . . . . Damage Inflicted 15280 | 94 827 59 1069 362 . 638 . 10637 . . 1594 Guns 6594 | 94 827 56 419 94 . 288 . 4321 . . 495 Cannons 8266 | . . . 650 268 . 350 . 5899 . . 1099 Explosions 417 | . . . . . . . . 417 . . . Melee . | . . . . . . . . . . . . Ramming 3 | . . 3 . . . . . . . . . Kinetic 11063 | . 827 56 419 94 . 288 . 8884 . . 495 Thermal 3422 | 94 . . 650 268 . 350 . 961 . . 1099 Explosive . | . . . . . . . . . . . . Electromagnetic 792 | . . . . . . . . 792 . . . Impact . | . . . . . . . . . . . . Slashing . | . . . . . . . . . . . . Piercing . | . . . . . . . . . . . . Highest Corruption 11 | . 6 6 6 6 . . 5 11 2 2 . Average Corruption 4 | . 3 6 6 6 . . 2 3 2 2 . Corruption Purged 11 | . . . . . . . . 11 . . . Corruption Blocked 7 | . . . . . . . . 7 . . . Effects 235 | . 8 28 74 52 . . 2 69 . 2 . Message Errors 64 | . 1 6 20 12 . . 1 24 . . . Matter Fused 61 | . 3 13 18 11 . . 1 14 . 1 . Heat Flow Errors 19 | . . 2 5 4 . . . 8 . . . Energy Discharges 24 | . 2 2 9 8 . . . 2 . 1 . Parts Rejected 2 | . . . 1 . . . . 1 . . . Parts Fused 2 | . 1 . 1 . . . . . . . . Data Loss (minor) 31 | . . 4 11 10 . . . 6 . . . Data Loss (major) 11 | . . . 3 2 . . . 6 . . . Misfires 11 | . 1 1 2 3 . . . 4 . . . Alerts 4 | . . . 2 2 . . . . . . . Weapon Failures 6 | . . . 2 . . . . 4 . . . Overload Shots . | . . . . . . . . . . . . Overflow Damage 522 | . . . 5 . . . . 430 . . 87 Projectiles 466 | . . . 5 . . . . 374 . . 87 Explosions 56 | . . . . . . . . 56 . . . Melee . | . . . . . . . . . . . . Knockbacks 17 | . . . . . . . . 17 . . . Impact . | . . . . . . . . . . . . Kinetic 17 | . . . . . . . . 17 . . . Secondary . | . . . . . . . . . . . . Self-Inflicted Damage 217 | . . . . . . . . 217 . . . Shots 5 | . . . . . . . . 5 . . . Rammed 1 | . . 1 . . . . . . . . . Targets Rammed 1 | . . 1 . . . . . . . . . Kicked . | . . . . . . . . . . . . Crushed . | . . . . . . . . . . . . Highest Temperature 438 | 60 10 249 229 261 . 268 . 276 . . 438 Average Temperature 66 | 27 5 116 108 90 . 116 . 45 . . 101 Received Heat Transfer 1629 | . 63 . 207 18 . 324 . 924 . . 93 Effects 3 | . . . . . . 1 . . . . 2 Shutdowns 1 | . . . . . . . . . . . 1 Energy Bleed 2 | . . . . . . 1 . . . . 1 Siege Activations . | . . . . . . . . . . . . Martial Activations . | . . . . . . . . . . . . Shielding Activations . | . . . . . . . . . . . . Robots Disrupted . | . . . . . . . . . . . . Combat Hostiles . | . . . . . . . . . . . . Robots Corrupted . | . . . . . . . . . . . . Combat Hostiles . | . . . . . . . . . . . . Parts Fried 5 | . . . . . . . . 5 . . . Impact Corruptions . | . . . . . . . . . . . . Robots Melted 3 | . . . . . . 1 . 1 . . 1 Combat Hostiles 3 | . . . . . . 1 . 1 . . 1 Parts Melted 13 | . . . 2 . . 1 . 8 . . 2 Heat Transferred 5984 | 260 . . 962 380 . 518 . 2532 . . 1332 Parts Sabotaged . | . . . . . . . . . . . . Parts Stolen . | . . . . . . . . . . . . Parts Stripped . | . . . . . . . . . . . . Power Chain Reactions . | . . . . . . . . . . . . Alert | -11 -10 -10 -10 -9 -9 -6 -6 -6 -6 -6 -5 ------- Run | Yrd Mat Min Sub Rec Scr Fac Was Fac Low Zio Pro Maximum Alert Level 1 | . . . . . . . . 1 . . . Low Security (%) 86 | 100 100 100 . 100 . 100 100 68 . . . Level 1 13 | . . . . . . . . 31 . . . Level 2 . | . . . . . . . . . . . . Level 3 . | . . . . . . . . . . . . Level 4 . | . . . . . . . . . . . . Level 5 . | . . . . . . . . . . . . High Security . | . . . . . . . . . . . . Max Security . | . . . . . . . . . . . . Peak Influence 359 | 5 85 35 . 61 . 70 . 359 . . . Initial . | . . . . . . . . . . . . Average 56 | 1 7 1 . 2 . 14 . 127 . . . Influence Increases 4624 | 20 245 70 235 188 . 308 . 2841 . . 717 Destroy 0b10 Robot/C 2400 | . 140 60 160 120 . 220 . 1320 . . 380 Destroy 0b10 Robot/NC 155 | 20 25 . . 15 . . . 95 . . . Destroy Leader 582 | . 40 10 . . . 60 . 422 . . 50 Allied During Kill 8 | . . . . . . 4 . 2 . . 2 Successful Hack 281 | . 40 . . 32 . . . 209 . . . Disable Machine 64 | . . . . . . . . 64 . . . Destroy Structure 114 | . . . . 21 . 9 . 84 . . . Partial Spotted 135 | . . . . . . . . 135 . . . Lose Combat Pursuer 885 | . . . 75 . . 15 . 510 . . 285 Influence Decreases 4429 | 20 245 70 235 188 . 308 . 2601 140 100 522 Entered New Map 225 | . . . . . . . . . 125 100 . Time Decay 3862 | 20 245 70 235 188 . 213 . 2426 15 . 450 Lost Part 145 | . . . . . . 30 . 115 . . . Lost Ally 197 | . . . . . . 65 . 60 . . 72 Squads Dispatched 43 | . . 1 . . . 6 . 34 . . 2 Investigation 17 | . . 1 . . . 2 . 14 . . . Extermination 13 | . . . . . . 1 . 12 . . . Reinforcement 8 | . . . . . . 3 . 5 . . . Assault 2 | . . . . . . . . . . . 2 Garrison 3 | . . . . . . . . 3 . . . Intercept . | . . . . . . . . . . . . Searches Triggered . | . . . . . . . . . . . . Construction Impeded 1 | . . . . . . . . 1 . . . Haulers Reinforced 2 | . . . . . . . . 2 . . . Active Scanning Responses . | . . . . . . . . . . . . Cargo Convoy Interrupts . | . . . . . . . . . . . . Stealth | -11 -10 -10 -10 -9 -9 -6 -6 -6 -6 -6 -5 --------- Run | Yrd Mat Min Sub Rec Scr Fac Was Fac Low Zio Pro Distress Signals 3 | . 1 . . . . . . 2 . . . Communications Jammed . | . . . . . . . . . . . . Distress Signals . | . . . . . . . . . . . . Times Spotted 211 | . 17 5 15 7 . 13 6 115 . . 33 Peak Tracking Total 9 | . 3 2 4 5 . 6 6 6 . . 9 Tactical Retreats 28 | . . . 2 . . 1 . 19 . . 6 Traps | -11 -10 -10 -10 -9 -9 -6 -6 -6 -6 -6 -5 ------- Run | Yrd Mat Min Sub Rec Scr Fac Was Fac Low Zio Pro Traps Triggered 20 | . 10 . . . . 2 . 8 . . . Indirectly 1 | . . . . . . . . 1 . . . Trap Hack Attempts . | . . . . . . . . . . . . Triggered . | . . . . . . . . . . . . Disarmed . | . . . . . . . . . . . . Reprogrammed . | . . . . . . . . . . . . Reused . | . . . . . . . . . . . . Traps Extracted . | . . . . . . . . . . . . Installed . | . . . . . . . . . . . . Triggered . | . . . . . . . . . . . . Machines | -11 -10 -10 -10 -9 -9 -6 -6 -6 -6 -6 -5 ---------- Run | Yrd Mat Min Sub Rec Scr Fac Was Fac Low Zio Pro Machines Disabled 20 | . . . 4 . . . . 16 . . . Max in Single Turn 7 | . . . 1 . . . . 7 . . . Garrison Access 2 | . . . . . . . . 2 . . . Machines Repaired . | . . . . . . . . . . . . Machines Dismantled . | . . . . . . . . . . . . Machines Sabotaged . | . . . . . . . . . . . . Overloaded Fab Kills . | . . . . . . . . . . . . Hacking | -11 -10 -10 -10 -9 -9 -6 -6 -6 -6 -6 -5 --------- Run | Yrd Mat Min Sub Rec Scr Fac Was Fac Low Zio Pro Machines Accessed 59 | . 8 1 4 12 . 1 . 33 . . . Terminals 32 | . 8 . . 6 . . . 18 . . . Fabricators 5 | . . . . . . . . 5 . . . Repair Stations 2 | . . . . . . . . 2 . . . Recycling Units 9 | . . . . 6 . . . 3 . . . Scanalyzers 3 | . . . . . . . . 3 . . . Garrison Access 3 | . . . . . . 1 . 2 . . . Total Hacks 186 | . 27 1 8 47 . 3 . 100 . . . Successful 131 | . 23 1 8 32 . . . 67 . . . Failed 55 | . 4 . . 15 . 3 . 33 . . . Catastrophic 5 | . . . . . . 1 . 4 . . . Database Lockouts . | . . . . . . . . . . . . Manual 98 | . 27 . . 37 . . . 34 . . . Terminals 115 | . 27 . . 33 . . . 55 . . . Fabricators 16 | . . . . . . . . 16 . . . Repair Stations 8 | . . . . . . . . 8 . . . Recycling Units 21 | . . . . 14 . . . 7 . . . Scanalyzers 12 | . . . . . . . . 12 . . . Garrison Access 5 | . . . . . . 3 . 2 . . . Terminal Hacks 55 | . 15 1 8 15 . . . 16 . . . Record 5 | . . . 5 . . . . . . . . Part Schematic 13 | . . . . 2 . . . 11 . . . Robot Schematic 1 | . . . . . . . . 1 . . . Prototype ID Bank 32 | . 15 . . 13 . . . 4 . . . Open Door 2 | . . 1 1 . . . . . . . . Proto ID Catalog 1 | . . . 1 . . . . . . . . Release Object 1 | . . . 1 . . . . . . . . Fabricator Hacks 12 | . . . . . . . . 12 . . . Load Schematic 7 | . . . . . . . . 7 . . . Build 5 | . . . . . . . . 5 . . . Repair Station Hacks 6 | . . . . . . . . 6 . . . Scan Component 2 | . . . . . . . . 2 . . . Repair 2 | . . . . . . . . 2 . . . Refit 2 | . . . . . . . . 2 . . . Recycling Unit Hacks 9 | . . . . 6 . . . 3 . . . Retrieve Components 9 | . . . . 6 . . . 3 . . . Scanalyzer 9 | . . . . . . . . 9 . . . Insert Component 5 | . . . . . . . . 5 . . . Analyze 4 | . . . . . . . . 4 . . . Garrison Access Hacks 2 | . . . . . . . . 2 . . . Seal Access 2 | . . . . . . . . 2 . . . Unauthorized Hacks 37 | . 8 . . 11 . . . 18 . . . Terminals 31 | . 8 . . 6 . . . 17 . . . Assimilate 9 | . . . . . . . . 9 . . . Botnet 22 | . 8 . . 6 . . . 8 . . . Fabricators . | . . . . . . . . . . . . Repair Stations . | . . . . . . . . . . . . Recycling Units 6 | . . . . 5 . . . 1 . . . Reject 6 | . . . . 5 . . . 1 . . . Scanalyzers . | . . . . . . . . . . . . Garrison Access . | . . . . . . . . . . . . Data Cores Recovered . | . . . . . . . . . . . . Used . | . . . . . . . . . . . . Hacking Detections 45 | . 8 . . 9 . 1 . 27 . . . Full Trace Events 15 | . . . . . . 1 . 14 . . . Feedback Events 1 | . . . . . . . . 1 . . . Corruption 1 | . . . . . . . . 1 . . . Feedback Blocked . | . . . . . . . . . . . . Robot Schematics Acquired 4 | . . . . . . . . 1 . 3 . Robots Built 3 | . . . . . . . . 3 . . . Authchips . | . . . . . . . . . . . . Time 116 | . . . . . . . . 116 . . . Total Robot Build Rating 9 | . . . . . . . . 9 . . . Part Schematics Acquired 32 | . . . . 2 . . . 15 . 15 . Parts Built 4 | . . . . . . . . 4 . . . Authchips . | . . . . . . . . . . . . Time 425 | . . . . . . . . 425 . . . Total Part Build Rating 26 | . . . . . . . . 26 . . . Part Studies Acquired . | . . . . . . . . . . . . Parts Repaired 2 | . . . . . . . . 2 . . . Time 112 | . . . . . . . . 112 . . . Parts Recycled . | . . . . . . . . . . . . Recycled Matter . | . . . . . . . . . . . . Retrieved Matter . | . . . . . . . . . . . . Retrieved Components 53 | . . . . 23 . . . 30 . . . Parts Scanalyzed 4 | . . . . . . . . 4 . . . Part Schematics Acquired 4 | . . . . . . . . 4 . . . Parts Damaged . | . . . . . . . . . . . . Bothacking | -11 -10 -10 -10 -9 -9 -6 -6 -6 -6 -6 -5 ------------ Run | Yrd Mat Min Sub Rec Scr Fac Was Fac Low Zio Pro Used RIF Installer . | . . . . . . . . . . . . Robots Hacked . | . . . . . . . . . . . . Non-combat . | . . . . . . . . . . . . Combat . | . . . . . . . . . . . . Robot Hacks Applied . | . . . . . . . . . . . . Relay Couplers Released 3 | . . . . . . . . 3 . . . Programmers 3 | . . . . . . . . 3 . . . Fabnet Peak Effective % . | . . . . . . . . . . . . Robots Rewired 11 | . . . . 11 . . . . . . . Allies Hacked . | . . . . . . . . . . . . Hacks Repelled . | . . . . . . . . . . . . Allies | -11 -10 -10 -10 -9 -9 -6 -6 -6 -6 -6 -5 -------- Run | Yrd Mat Min Sub Rec Scr Fac Was Fac Low Zio Pro Total Allies 22 | . . 3 . 11 . . 1 3 . 4 . Largest Group 11 | . . 3 3 11 11 11 1 3 . 4 4 Highest-Rated Group 149 | . . 40 40 127 127 127 21 48 . 149 149 Highest-Rated Ally 39 | . . 16 16 34 34 34 21 16 . 39 39 Total Orders 5 | . . . . . . 5 . . . . . ROAM 1 | . . . . . . 1 . . . . . PICKUP 2 | . . . . . . 2 . . . . . COLLECT 2 | . . . . . . 2 . . . . . Ally Attacks 72 | . . . 11 3 . 14 7 28 . . 9 Total Damage 1339 | . . . 107 141 . 357 170 339 . . 225 Kills 11 | . . . . 3 . 5 . 1 . . 2 Allies Corrupted . | . . . . . . . . . . . . Allies Melted . | . . . . . . . . . . . . Intel | -11 -10 -10 -10 -9 -9 -6 -6 -6 -6 -6 -5 ------- Run | Yrd Mat Min Sub Rec Scr Fac Was Fac Low Zio Pro Active Infowar (turns) 12664 | 62 1311 983 2929 1933 1768 542 . 1328 26 1170 612 Sensors 2591 | 59 552 . . . . . . 179 19 1170 612 Structural 9528 | 62 1311 983 2929 1933 1768 542 . . . . . Triangulation 1282 | . . . . . . . . 1264 7 11 . Cloaking 64 | . . . . . . . . 64 . . . Robot Analysis Total . | . . . . . . . . . . . . Derelict Logs Recovered 5 | . . 1 1 . . . . . . 1 2 Drone Launches . | . . . . . . . . . . . . Drone Recoveries . | . . . . . . . . . . . . Exploration | -11 -10 -10 -10 -9 -9 -6 -6 -6 -6 -6 -5 ------------- Run | Yrd Mat Min Sub Rec Scr Fac Was Fac Low Zio Pro Turns Passed 15363 | 93 1311 983 2929 1933 1768 660 163 3707 26 1178 612 Spaces Moved 12348 | 58 721 595 1394 983 565 237 203 4946 37 1790 819 Core 382 | 30 . . . . . . 182 170 . . . Treads 4544 | 28 721 595 1394 983 565 237 21 . . . . Legs 207 | . . . . . . . . 207 . . . Wheels . | . . . . . . . . . . . . Hover . | . . . . . . . . . . . . Flight 7215 | . . . . . . . . 4569 37 1790 819 Fastest Speed 30 | 50 160 160 160 160 160 162 50 30 34 34 34 Average Speed 99 | 103 160 160 186 175 295 199 74 45 72 51 34 Slowest Speed 354 | 160 240 160 340 340 320 320 350 350 114 354 34 Overloaded Moves . | . . . . . . . . . . . . Propulsion Burnouts . | . . . . . . . . . . . . Robots Hopped 18 | . . . . . . . . 18 . . . Potential Cave-ins . | . . . . . . . . . . . . Cave-ins Triggered . | . . . . . . . . . . . . Exploration Rate (%) 64 | 4 99 97 67 96 49 6 91 93 8 90 79 Regions Visited 11 Branch Regions 7 Pre-discovered Areas 2 | . . 1 1 . . . . . . . . Known Exits Taken 8 | 1 1 1 1 1 1 . . 1 . 1 . Unknown Exits Taken 1 | . . . . . . . . . 1 . . Scrap Searched 14 | . . 1 4 . 5 . . . . 3 1 Spaces Dug . | . . . . . . . . . . . . Terrain Destroyed 95 | . . . . 2 . . . 87 . . 6 Melee . | . . . . . . . . . . . . Projectile 24 | . . . . 2 . . . 16 . . 6 AOE 71 | . . . . . . . . 71 . . . Terrain Rammed . | . . . . . . . . . . . . Walls Destroyed . | . . . . . . . . . . . . Machines Disabled . | . . . . . . . . . . . . Actions | -11 -10 -10 -10 -9 -9 -6 -6 -6 -6 -6 -5 --------- Run | Yrd Mat Min Sub Rec Scr Fac Was Fac Low Zio Pro Total 14750 | 78 814 618 1628 1173 667 395 219 6009 36 2041 1072 Wait 1607 | . 33 9 136 105 88 126 11 682 . 218 199 Move 12303 | 57 720 594 1393 982 564 237 202 4910 36 1789 819 Hop 17 | . . . . . . . . 17 . . . Pick Up 99 | 6 12 8 7 9 8 6 3 33 . 7 . Fast Attach 65 | 3 3 . 1 . 3 . . 48 . 4 3 Attach 38 | 5 4 . 2 . . 8 1 13 . 5 . Detach 10 | 1 2 . . . . . . 5 . 2 . Swap 29 | . 2 1 12 2 1 1 . 4 . 3 3 Drop 83 | . 5 1 14 6 3 . 2 35 . 11 6 Fire 412 | 6 33 4 63 11 . 17 . 235 . 1 42 Melee . | . . . . . . . . . . . . Ram . | . . . . . . . . . . . . Kick . | . . . . . . . . . . . . Crush 1 | . . 1 . . . . . . . . . Escape Stasis 27 | . . . . . . . . 27 . . . Rewire 58 | . . . . 58 . . . . . . . Trap . | . . . . . . . . . . . . Miscellaneous 1 | . . . . . . . . . . 1 . Route ------- -11/Scrapyard -10/Materials (discovered 5 exits: *Mat x3 / *Min / *Sub) -10/Mines (discovered 4 exits: *Mat x2 / Exi / *Sub) -10/Subcaves -9/Recycling (discovered 2 exits: *Fac / *Scr) -9/Scraptown -6/Factory -6/Waste -6/Factory (discovered 6 exits: *Fac x4 / *Low x2) -6/Lower Caves -6/Zion -5/Proximity Caves (discovered 1 exit: *Fac) History --------- Turn | Location | Event 3 | -11/Scrapyard | Identified exit to Materials 3 | -11/Scrapyard | Discovered exit to Materials (range 15) 94 | -11/Scrapyard | Entered Materials 94 | -10/Materials | Evolved 1 slot: Utility x1 233 | -10/Materials | Identified exit to Mines 233 | -10/Materials | Discovered exit to Mines (range 14) 303 | -10/Materials | Build established: Hacker-Mutant 500 | -10/Materials | Identified exit to Subcaves 500 | -10/Materials | Discovered exit to Subcaves (range 9) 557 | -10/Materials | Identified exit to Materials 557 | -10/Materials | Discovered exit to Materials (range 16) 594 | -10/Materials | Derelicts attacked the area 833 | -10/Materials | Discovered exit to Materials (range 14) 1020 | -10/Materials | Discovered exit to Materials (range 5) 1405 | -10/Materials | Entered Mines 1406 | -10/Mines | Learned location of Storage (-9) 1491 | -10/Mines | Discovered exit to Materials (range 8) 1508 | -10/Mines | Met a Derelict shopkeep closing up shop 1573 | -10/Mines | Deemed a non-threat by the Exiles lab entrance 1573 | -10/Mines | Identified exit to Exiles 1573 | -10/Mines | Discovered exit to Exiles (range 6) 1632 | -10/Mines | Discovered exit to Subcaves (range 9) 1634 | -10/Mines | Found a damaged Exp. Sensor Array with a note attached 1639 | -10/Mines | Found Prototype Device 1655 | -10/Mines | Learned Materials interactive machine intel 1706 | -10/Mines | Assisted by bots powering up and referring to "LRC-V3" 1951 | -10/Mines | Found a hidden stash of uninstalled traps 2093 | -10/Mines | Discovered exit to Materials (range 9) 2388 | -10/Mines | Entered Subcaves 2388 | -10/Subcaves | Accompanied by 3 allies 2461 | -10/Subcaves | Shifting Twisted Machinery released Sub. Laser 2477 | -10/Subcaves | Shifting Twisted Machinery released Sub. Shrapnel Launcher 2559 | -10/Subcaves | Lost 3 allies 2766 | -10/Subcaves | Shifting Twisted Machinery released Sub. Shrapnel Launcher 2786 | -10/Subcaves | Shifting Twisted Machinery released Sub. Monowheel 3274 | -10/Subcaves | Identified exit to Recycling 3274 | -10/Subcaves | Discovered exit to Recycling (range 10) 3428 | -10/Subcaves | Visited Clippyterm 3432 | -10/Subcaves | Learned location of Deep Caves (-6) 4150 | -10/Subcaves | Ambushed by angry Subdweller bent on revenge 4419 | -10/Subcaves | Visited 4L-MR0's lab 4442 | -10/Subcaves | Found Rainbow Chip 4626 | -10/Subcaves | Found SUBCON Basin 5317 | -10/Subcaves | Entered Recycling 5546 | -9/Recycling | Scanned before Scraplab entrance 5585 | -9/Recycling | Identified exit to Scraptown 5585 | -9/Recycling | Discovered exit to Scraptown (range 11) 5594 | -9/Recycling | Entered Scraplab 5871 | -9/Recycling | Core integrity fell below 50% 6411 | -9/Recycling | Identified exit to Factory 6411 | -9/Recycling | Discovered exit to Factory (range 16) 7028 | -9/Recycling | Build established: Commander-Mutant 7250 | -9/Recycling | Entered Scraptown 7250 | -9/Scraptown | Accompanied by 11 allies 7250 | -9/Scraptown | System corruption cleaned by C-Scrubber 7574 | -9/Scraptown | Visited Comm Corps 7599 | -9/Scraptown | Visited SPCMW 7641 | -9/Scraptown | Visited Assassins FH 7689 | -9/Scraptown | Visited Red Mages 7750 | -9/Scraptown | Visited Fellowship of the Rings 7788 | -9/Scraptown | Visited Cyclists 7846 | -9/Scraptown | Visited Spacefarers 7970 | -9/Scraptown | Identified exit to Factory 7970 | -9/Scraptown | Discovered exit to Factory (range 13) 9018 | -9/Scraptown | Entered Factory 9018 | -6/Factory | Accompanied by 11 allies 9018 | -6/Factory | Evolved 8 slots: Propulsion x4, Utility x4 9165 | -6/Factory | Lost 5 allies 9513 | -6/Factory | Found Hvy. Reflective Plating 9528 | -6/Factory | Lost 4 allies 9597 | -6/Factory | Build established: Hacker-Mutant 9678 | -6/Factory | Sucked down chute 9678 | -6/Factory | Entered Waste 9678 | -6/Waste | Met up with 1 ally sucked down the chute earlier 9688 | -6/Waste | Spotted C-40 Crusher 9693 | -6/Waste | EMP discharged 9695 | -6/Waste | Spotted C-40 Crusher 9698 | -6/Waste | Spotted C-40 Crusher 9714 | -6/Waste | Crushed by Compactor (1 part destroyed, 1 dropped) 9717 | -6/Waste | Crushed by Compactor (1 part destroyed, 2 dropped) 9724 | -6/Waste | Spotted C-40 Crusher 9728 | -6/Waste | Crushed by Compactor (1 part destroyed, 1 dropped) 9729 | -6/Waste | Crushed by Compactor (1 part destroyed, 2 dropped) 9753 | -6/Waste | Crushed by Compactor (1 part destroyed, 2 dropped) 9758 | -6/Waste | Spotted C-40 Crusher 9762 | -6/Waste | Spotted C-40 Crusher 9784 | -6/Waste | Lost 5 parts (2n2u1w) 9793 | -6/Waste | EMP discharged 9822 | -6/Waste | Identified exit to Factory 9822 | -6/Waste | Discovered exit to Factory (range 13) 9841 | -6/Waste | Entered Factory 10370 | -6/Factory | Repaired Corrupted Field Propulsion Array 10422 | -6/Factory | Core integrity fell below 50% 10445 | -6/Factory | Lost 8 parts (1p2n2u3w) 10694 | -6/Factory | Identified exit to Factory 10694 | -6/Factory | Discovered exit to Factory (range 15) 10826 | -6/Factory | Found Powered Armor 10827 | -6/Factory | Found Powered Armor 11132 | -6/Factory | Discovered exit to Factory (range 4) 11177 | -6/Factory | System corruption reached 10% 11246 | -6/Factory | Repaired Corrupted Hvy. Mass Driver 11364 | -6/Factory | Fabricated Cld. Cesium-ion Thruster? 11813 | -6/Factory | Fabricated Field Propulsion Array (x1) 11869 | -6/Factory | Spotted B-75 Beast 11878 | -6/Factory | Discovered exit to Factory (range 14) 12012 | -6/Factory | Destroyed 8 combat bots 12032 | -6/Factory | Allied Derelicts emerged from ambush trap array 12148 | -6/Factory | Garrison activated, responded to threat 12163 | -6/Factory | Destroyed B-75 Beast 12201 | -6/Factory | Lost 3 allies 12261 | -6/Factory | Build established: Hacker-Sprinter 12553 | -6/Factory | Fabricated Field Propulsion Array (x1) 12672 | -6/Factory | Fabricated G-47 Trooper? 12687 | -6/Factory | Identified exit to Lower Caves 12687 | -6/Factory | Discovered exit to Lower Caves (range 15) 12833 | -6/Factory | Discovered exit to Factory (range 4) 12851 | -6/Factory | Build established: Hacker-Mutant 13332 | -6/Factory | Core integrity fell below 20% 13457 | -6/Factory | Fabricated Field Propulsion Array (x1) 13505 | -6/Factory | Discovered exit to Lower Caves (range 5) 13548 | -6/Factory | Entered Lower Caves 13563 | -6/Lower Caves | A Derelict revealed a hidden shortcut to a safe place 13574 | -6/Lower Caves | Entered Zion 13686 | -6/Zion | System corruption cleaned by Quarantine Array 13742 | -6/Zion | Identified exit to Proximity Caves 13742 | -6/Zion | Discovered exit to Proximity Caves (range 11) 13791 | -6/Zion | Given A8's code to call for help 14044 | -6/Zion | Found Unknown Piercing Weapon 14060 | -6/Zion | Met Imprinter 14065 | -6/Zion | Imprinted 14067 | -6/Zion | Declared Zion's savior 14088 | -6/Zion | Found Prototype Device 14088 | -6/Zion | Identified Phasing AFG 14156 | -6/Zion | Learned location of 1 exit from Factory 14230 | -6/Zion | Visited the Megawrench Repair Shop 14240 | -6/Zion | Megawrench repaired 8 parts 14752 | -6/Zion | Entered Proximity Caves 14752 | -5/Proximity Caves | Accompanied by 4 allies 14814 | -5/Proximity Caves | Lost 4 allies 15062 | -5/Proximity Caves | Derelict sapper outpost attacked 15082 | -5/Proximity Caves | Encountered a Derelict sapper outpost 15137 | -5/Proximity Caves | Learned location of 1 exit from Factory 15358 | -5/Proximity Caves | Attracted the attention of an 0b10 checkpoint 15364 | -5/Proximity Caves | Destroyed by Y-64 Sentinel with KE Penetrator Last Messages --------------- 15291_ Penetrated by Slug. 15294_ Slug penetrates Wall. 15294_ H-66 Slayer destroyed. 15295_ Slug penetrates Wall. 15299_ Destroyed Targeting Computer. 15300_ Penetrated by Slug. 15303_ Slug penetrates Wall. 15303_ Penetrated by Slug. 15310_ Slug penetrates Wall. 15314_ H-66 Slayer destroyed. 15320_ Acquired 24 matter. 15322_ Dropped Hvy. Battle Rifle. 15324_ Acquired 10 matter. 15325_ Dropped Angular Momentum Engine. 15357_ Slug penetrates Y-64 Sentinel. 15358_ Y-64 Sentinel: "INTERCEPTING UNREGISTERED DERELICT." 15359_ Slug penetrates Wall. 15360_ Slug penetrates Y-64 Sentinel. 15364_ Penetrated by Slug. Map ----- +----------------------------------------------------+ | ?????????????????????????????????????????????????? | | ?????????????????????????????????????????????????? | | ?????????????????????????????????????????????????? | | ?????????????????????????????????????????????????? | | ?????????????????????????????????????????????????? | | ?????????????????????????????????????????????????? | | ?????????????????????????????????????????????????? | | ?????????????????????????????????????????????????? | | ?????????????????????????????????????????????????? | | ?????????????????????????????????????????????????? | | ?????????????????????????????????????????????????? | | ?????????????????????????????????????????????????? | | ?????????????????????????????????????????????????? | | ?????????????????????????????????????????????????? | | ?????????????????????????????###?????????????????? | | ????????????????????????##### #?????????????????? | | ???????????????????????? #?????????????????? | | ???????????????????????? #?????????????????? | | #??????????????????????? ??????????????????? | | ##?????????????????????? ???????????????????? | | #??????????????????????# #???????????????????? | | #############??????????# ####????????????????? | | #??????????# ?????????????????? | | ######### ## #?????????## ???????????????????? | | #???????# ## ##??#?????#; ##???????????????????? | | #??????# ##?# ???## @ ;###?????????????????? | | ##??????## ### ### ;# ???????????? | | #????????## * ### ??????????? | | ??????????##[[[ #### ?????????? | | ?###########!%== ### ### ?????????? | | =!= ###??? Y ??????????? | | [ #### #####?????? ??????????? | | ########### #???????????? ??????????? | | #####?????# #????????????? ???????????? | | ##????# #### #??????????????????????????? | | ###### #??## ##?????????????????????????? | | ## ### ???# < ####??????????????????????? | | ## ???##" #??????????????????????? | | ### ## ????## ##?????????????????????? | | ??## ####????## ##????????????????????? | | ???## #???????# #????????????????????? | | ????# ##???????# ##???????????????????? | | ????# #####?????# #???????????????????? | | ???## ## ######## ## ###???????????????????? | | ???# #?###?????????????????????? | | ???# #?????????????????????????? | | #### ####### #????????????????????????? | | ##?????## #????????????????????????? | | #???????#####????????????????????????? | | #### #????????????????????????????????????? | +----------------------------------------------------+ Best States ------------- Heat Dissipation 56 Energy Generation 18 Energy Capacity 660 Matter Stores 600 Matter Capacity 600 Sight Range 16 Robot Scan Range 16 Terrain Scan Density 10 Cloak Strength 2 Additional Mass Support 9 EM Shielding 2 Corruption Block 8 Armor Coverage 800 Resistance: KI 55 Resistance: TH 35 Resistance: EX 35 Resistance: EM 60 Resistance: I 35 Resistance: S 35 Resistance: P 35 Core Shielding 30 Evasion (%) 71 Targeting Accuracy 16 Core Analysis 6 Recoil Reduction 5 Energy Filtering 30 Offensive Hacking 50 Authchip Count 4 Item Schematics ----------------- Hvy. Flail | -9/Recycling | Hacked Kinecellerator | -9/Recycling | Hacked Adv. Shield Generator | -6/Factory | Hacked Disruptor Cannon | -6/Factory | Hacked Imp. Armor Integrity Analyzer | -6/Factory | Hacked Adv. Thermal Generator | -6/Factory | Hacked EM Shield | -6/Factory | Hacked Hvy. Mass Driver | -6/Factory | Scanalyzed Machine Analyzer | -6/Factory | Scanalyzed IFF Parser | -6/Factory | Hacked Imp. Remote Force Field | -6/Factory | Hacked Adv. Signal Interpreter | -6/Factory | Hacked Cld. Cesium-ion Thruster | -6/Factory | Hacked Field Propulsion Array | -6/Factory | Scanalyzed Adv. Sensor Array | -6/Factory | Hacked Adv. Power Amplifier | -6/Factory | Hacked Hacking Suite | -6/Factory | Scanalyzed Phase Cannon | -6/Zion | Archive Neutrino Core | -6/Zion | Archive Magnetic Acceleration Cannon | -6/Zion | Archive HERF Cannon | -6/Zion | Archive Adv. System Restoration Module | -6/Zion | Archive Adv. Heat Sink | -6/Zion | Archive Imp. Force Field | -6/Zion | Archive Hardcell Cannon | -6/Zion | Archive Imp. Coolant Injector | -6/Zion | Archive Imp. Hacking Suite | -6/Zion | Archive Adv. Melee Analysis Suite | -6/Zion | Archive Imp. Arc Projector | -6/Zion | Archive Thermic Laser | -6/Zion | Archive System Guard | -6/Zion | Archive Field Propulsion Drive | -6/Zion | Archive Robot Schematics ------------------ G-47 Trooper | -6/Factory | Hacked D-53 Grenadier | -6/Zion | Archive R-06 Scavenger | -6/Zion | Archive A-02 Transporter | -6/Zion | Archive Fabricated ------------ Cld. Cesium-ion Thruster | x1 | -6/Factory Field Propulsion Array | x1 | -6/Factory Field Propulsion Array | x1 | -6/Factory G-47 Trooper | x3 | -6/Factory Field Propulsion Array | x1 | -6/Factory Repaired ---------- Field Propulsion Array | 11% | -6/Factory | Corrupted Hvy. Mass Driver | 5% | -6/Factory | Corrupted Studied --------- None Alien Tech Used ----------------- None Achievements -------------- None Challenges ------------ None Game ------ Seed DirtyBiometalGravjet Manual? 0 Play Time 01:55:38 Cumulative 223.1 hours Start 2025.12.22 @ 17:19:18 End 2025.12.24 @ 11:27:18 Sessions 3 Manual Loads 0 Difficulty Explorer Special Mode None Game No. 338 Rogue 0 Adventurer 0 Explorer 338 Win Type - Total 0 Types 0/0/0/0/0/0/0/0/0/0 Lore% 71 Gallery% 68 Achievement% 53 Wizard Run 0 Options --------- Layout 1 ASCII 0 Keyboard 0 Movement Mouse Keybinds 0 Fullscreen 1 Font 24/Smallcaps Map View 50x35 Zoom Use 0% Tactical HUD 1 Map Filters NONE Filters NONE Steam 1 RUN: 2c557f2e-28c8-45ea-a543-ff27502e57bc